bitfinex/quotes_SOLUSD_20241010
["timestamp","ask_amount","ask_price","bid_price","bid_amount"]
[1728560576326,7.1312,140.23,140.19,38.67313814]
[1728560576501,7.1317,140.22,140.19,17.8318]
[1728560577836,7.1313,140.23,140.2,1.42635221]
[1728560578203,7.1313,140.23,140.2,15.13499035]
[1728560580316,7.1313,140.23,140.2,13.70863814]
[1728560580829,7.1313,140.23,140.19,38.67353814]
[1728560581619,7.1307,140.24,140.2,22.26728681]
[1728560582512,7.1302,140.25,140.21,20.84063814]
[1728560582721,7.1302,140.25,140.22,1.42611601]
[1728560583833,7.1302,140.25,140.21,20.84063814]
[1728560584433,7.1302,140.25,140.22,1.42613748]
[1728560585109,20.25098,140.28,140.22,15.13477562]
[1728560585314,7.1297,140.26,140.22,22.26617562]
[1728560586135,20.25098,140.28,140.22,15.13477562]
[1728560586434,7.1301,140.25,140.22,15.13477562]
[1728560586629,7.1301,140.25,140.22,13.70863814]
[1728560587145,7.1301,140.25,140.22,15.13475429]
[1728560587434,7.1301,140.25,140.22,13.70863814]
[1728560589034,27.129,140.28,140.23,31.53633814]
[1728560589212,7.129,140.28,140.24,22.2651636]
[1728560591348,7.129,140.28,140.24,20.83923814]
[1728560592453,7.129,140.28,140.25,8.55575033]
[1728560592736,7.129,140.28,140.24,20.83903814]
[1728560596324,7.1291,140.27,140.24,7.1304]
[1728560596733,7.1291,140.27,140.23,54.74433814]
[1728560603855,7.1303,140.25,140.23,16.0771]
[1728560604230,7.1303,140.25,140.21,20.84063814]
[1728560604231,7.1306,140.24,140.2,24.9633]
[1728560604430,7.1306,140.24,140.2,38.67193814]
[1728560604626,7.1306,140.24,140.2,24.9633]
[1728560604854,20.12549,140.27,140.19,15.6859]
[1728560605058,7.1317,140.22,140.19,15.6859]
[1728560606339,7.1313,140.23,140.19,36.52753814]
[1728560606539,7.1313,140.23,140.2,1.42631552]
[1728560606741,7.1313,140.23,140.19,36.52753814]
[1728560608030,7.1313,140.23,140.2,1.42631816]
[1728560608340,7.1313,140.23,140.19,36.52753814]
[1728560608957,7.1313,140.23,140.2,1.4263045]
[1728560617665,7.1313,140.23,140.19,36.52753814]
[1728560617956,7.1313,140.23,140.2,1.42631483]
[1728560618152,7.1313,140.23,140.19,36.52753814]
[1728560618359,7.132,140.22,140.19,15.6859]
[1728560618540,7.1325,140.21,140.17,24.9683]
[1728560619058,7.1325,140.21,140.17,38.67693814]
[1728560620757,7.1325,140.21,140.18,13.70863814]
[1728560621177,7.1325,140.21,140.18,15.1350964]
[1728560621342,7.1318,140.22,140.18,22.2686964]
[1728560621659,7.1318,140.22,140.19,13.70863814]
[1728560622556,7.131,140.24,140.2,22.26759617]
[1728560622858,7.1311,140.23,140.2,22.26759617]
[1728560623364,7.1311,140.23,140.2,15.13509617]
[1728560623745,7.1307,140.24,140.21,13.70863814]
[1728560627057,7.1307,140.24,140.2,22.26759617]
[1728560627864,7.1307,140.24,140.2,20.84113814]
[1728560628644,7.1307,140.24,140.21,1.426252]
[1728560628842,7.1307,140.24,140.2,20.84113814]
[1728560629044,7.1307,140.24,140.21,1.4262473]
[1728560629745,7.1307,140.24,140.21,23.776884]
[1728560630646,7.1303,140.25,140.21,32.33507771]
[1728560631055,7.1303,140.25,140.21,46.04371585]
[1728560631454,6.232,140.28,140.22,13.70863814]
[1728560631765,20.0,140.25,140.22,20.84013814]
[1728560632253,7.1305,140.25,140.21,38.67053814]
[1728560634273,7.1309,140.24,140.2,30.909284]
[1728560639576,7.1309,140.24,140.2,44.61792214]
[1728560639877,7.1309,140.24,140.2,30.909284]
[1728560640250,0.12549,140.26,140.19,16.0037]
[1728560640453,7.1317,140.22,140.19,16.0037]
[1728560642775,7.1317,140.22,140.19,29.71233814]
[1728560642986,7.1317,140.22,140.2,1.42629452]
[1728560643275,7.1313,140.23,140.2,1.42629452]
[1728560644180,7.1313,140.23,140.19,36.84533814]
[1728560644675,7.1313,140.23,140.2,1.42627352]
[1728560645272,7.1313,140.23,140.2,7.1325]
[1728560645473,7.1313,140.23,140.2,8.55878437]
[1728560645776,7.1313,140.23,140.19,36.84533814]
[1728560646995,7.1313,140.23,140.2,1.42628503]
[1728560647582,7.1306,140.24,140.2,22.26722317]
[1728560647776,7.1312,140.23,140.2,13.70863814]
[1728560648666,7.1312,140.23,140.2,15.13489729]
[1728560650381,7.1308,140.24,140.2,22.26739729]
[1728560650882,37.8228,140.27,140.2,22.26739729]
[1728560650883,7.1303,140.25,140.22,13.70863814]
[1728560651057,7.1296,140.26,140.23,1.42603082]
[1728560651376,7.1296,140.26,140.22,20.84013814]
[1728560651966,7.1301,140.25,140.22,20.84013814]
[1728560652281,7.1301,140.25,140.23,1.42602474]
[1728560652453,7.1301,140.25,140.22,20.84013814]
[1728560652657,7.1301,140.25,140.22,13.70863814]
[1728560652872,7.1301,140.25,140.21,20.84053814]
[1728560653884,7.1301,140.25,140.22,1.42608557]
[1728560655169,7.1301,140.25,140.21,20.84053814]
[1728560655486,7.1301,140.25,140.22,1.42608545]
[1728560656489,7.1301,140.25,140.21,20.84053814]
[1728560656668,7.1301,140.25,140.22,1.42602534]
[1728560656869,7.1301,140.25,140.21,7.1319]
[1728560657264,7.1307,140.24,140.21,23.776884]
[1728560658589,7.1307,140.24,140.21,30.908984]
[1728560664982,7.1302,140.25,140.22,1.42607127]
[1728560665177,3.24,140.29,140.23,37.48552214]
[1728560665386,7.1295,140.27,140.23,20.83953814]
[1728560673690,7.1295,140.27,140.24,1.42583428]
[1728560673901,7.1295,140.27,140.23,20.83953814]
[1728560674095,7.1286,140.28,140.24,63.86775628]
[1728560675396,7.1286,140.28,140.25,1.42571222]
[1728560676702,3.24,140.29,140.27,7.1291]
[1728560676881,3.24,140.29,140.28,1.42560257]
[1728560678788,3.24,140.29,140.27,20.83773814]
[1728560679179,3.24,140.29,140.27,22.26319643]
[1728560679479,3.24,140.29,140.27,20.83773814]
[1728560682612,3.24,140.29,140.28,8.55392413]
[1728560683408,3.24,140.29,140.27,30.905584]
[1728560683716,10.3684,140.29,140.26,17.8237]
[1728560684411,3.24,140.29,140.26,24.9532]
[1728560684615,7.1292,140.27,140.25,13.70863814]
[1728560684989,3.24,140.29,140.25,13.70863814]
[1728560685305,7.1287,140.28,140.25,13.70863814]
[1728560685994,3.24,140.29,140.24,23.776884]
[1728560686213,7.1296,140.26,140.24,23.776884]
[1728560686933,3.24,140.29,140.25,1.42573725]
[1728560686934,7.1292,140.27,140.25,1.42573725]
[1728560688324,7.1292,140.27,140.24,37.48552214]
[1728560689110,7.1292,140.27,140.25,1.42573064]
[1728560689416,7.1292,140.27,140.24,23.776884]
[1728560691315,7.1296,140.26,140.23,47.77953814]
[1728560691610,7.1296,140.26,140.23,16.2435]
[1728560694321,7.1296,140.26,140.24,1.42583909]
[1728560694618,7.1286,140.28,140.25,23.776884]
[1728560695195,7.1286,140.28,140.25,30.906984]
[1728560695535,7.1286,140.28,140.25,23.776884]
[1728560697319,3.24,140.29,140.23,16.2435]
[1728560697520,21.0605,140.29,140.24,23.776884]
[1728560697726,7.1291,140.27,140.24,25.20266534]
[1728560700720,7.1291,140.27,140.24,23.776884]
[1728560701620,7.1291,140.27,140.23,37.08313814]
[1728560702024,3.24,140.29,140.23,29.95213814]
[1728560702232,7.1301,140.25,140.23,16.2435]
[1728560703231,7.1298,140.26,140.23,17.66938717]
[1728560704325,10.3682,140.29,140.25,7.1297]
[1728560704509,10.3681,140.29,140.26,23.776884]
[1728560704707,3.24,140.29,140.26,30.906384]
[1728560705126,3.24,140.29,140.27,1.42548944]
[1728560705633,3.24,140.29,140.26,30.906384]
[1728560708227,7.1286,140.28,140.26,23.776884]
[1728560708812,3.24,140.29,140.26,23.776884]
[1728560709018,7.1291,140.27,140.26,23.776884]
[1728560714529,7.25459,140.27,140.26,23.776884]
[1728560714735,0.12549,140.27,140.26,23.776884]
[1728560714913,7.1287,140.28,140.26,23.776884]
[1728560715428,7.1291,140.27,140.26,23.776884]
[1728560716010,7.1287,140.28,140.26,23.776884]
[1728560717332,7.1291,140.27,140.26,23.776884]
[1728560718212,7.1287,140.28,140.26,23.776884]
[1728560719233,7.1287,140.28,140.27,1.425671]
[1728560719531,7.1287,140.28,140.26,23.776884]
[1728560721733,3.24,140.29,140.26,23.776884]
[1728560721936,9.34370754,140.31,140.26,23.776884]
[1728560722116,20.0,140.3,140.26,23.776884]
[1728560722515,20.0,140.3,140.22,24.9601]
[1728560722516,0.12549,140.31,140.22,24.9601]
[1728560722738,0.25098,140.31,140.22,24.9601]
[1728560723123,0.25098,140.31,140.22,38.66873814]
[1728560723945,0.25098,140.31,140.22,31.53733814]
[1728560723946,7.1296,140.26,140.22,31.53733814]
[1728560724119,18.06888,140.31,140.23,20.83963814]
[1728560724120,7.1292,140.27,140.23,20.83963814]
[1728560724317,7.1292,140.27,140.24,1.4257509]
[1728560724518,7.1292,140.27,140.23,20.83963814]
[1728560725226,7.1292,140.27,140.24,1.42580186]
[1728560726039,7.1292,140.27,140.23,20.83963814]
[1728560726237,17.94339,140.31,140.22,31.53733814]
[1728560726428,7.1299,140.26,140.22,24.9602]
[1728560727033,7.1301,140.25,140.22,17.8287]
[1728560727441,7.1301,140.25,140.21,35.85923814]
[1728560727640,7.1307,140.24,140.21,15.0187]
[1728560727943,7.1302,140.25,140.22,1.42601643]
[1728560729334,27.44336534,140.32,140.24,13.70863814]
[1728560729538,27.44336534,140.32,140.23,31.53613814]
[1728560729722,7.1299,140.26,140.23,17.8275]
[1728560730533,17.8193,140.3,140.22,20.84003814]
[1728560730744,7.1311,140.23,140.21,15.0187]
[1728560731620,7.1316,140.22,140.18,20.84223814]
[1728560732522,7.1316,140.22,140.19,13.70863814]
[1728560735119,7.1316,140.22,140.18,20.84223814]
[1728560735519,7.1316,140.22,140.19,15.13488251]
[1728560737948,7.1313,140.23,140.2,13.70863814]
[1728560738121,7.1313,140.23,140.21,1.426184]
[1728560742050,7.1313,140.23,140.2,13.70863814]
[1728560742748,20.0,140.25,140.17,32.853]
[1728560742931,7.1318,140.22,140.18,7.1336]
[1728560743427,7.1318,140.22,140.18,20.84223814]
[1728560743627,7.1318,140.22,140.19,1.42627852]
[1728560743833,20.0,140.25,140.19,15.13491666]
[1728560744122,7.1312,140.23,140.19,22.26791666]
[1728560744537,7.1312,140.23,140.19,20.84163814]
[1728560744740,7.1312,140.23,140.2,1.4261763]
[1728560745652,7.1312,140.23,140.19,20.84163814]
[1728560745837,20.0,140.25,140.2,1.42617218]
[1728560746036,7.1308,140.24,140.2,7.1325]
[1728560746749,7.1311,140.23,140.2,7.1325]
[1728560747145,7.1311,140.23,140.19,38.67413814]
[1728560750757,7.1311,140.23,140.19,24.9655]
[1728560750942,7.1317,140.22,140.19,17.8325]
[1728560752127,7.1317,140.22,140.2,1.42620734]
[1728560752442,7.1317,140.22,140.19,31.54113814]
[1728560755761,7.1317,140.22,140.19,17.8325]
[1728560756462,7.1313,140.23,140.2,15.13484536]
[1728560756846,7.1313,140.23,140.2,13.70863814]
[1728560757745,7.1313,140.23,140.19,24.9652]
[1728560757948,7.1313,140.23,140.19,38.67383814]
[1728560758148,20.0,140.25,140.17,15.0187]
[1728560758456,7.1321,140.21,140.18,17.66568284]
[1728560758641,7.1321,140.21,140.18,13.70863814]
[1728560759267,7.1321,140.21,140.18,20.84223814]
[1728560760238,7.1321,140.21,140.17,22.1526]
[1728560760544,20.0,140.25,140.18,24.79905497]
[1728560760545,7.1318,140.22,140.18,24.79905497]
[1728560760858,7.1307,140.24,140.21,13.70863814]
[1728560761169,20.0,140.28,140.22,15.13464502]
[1728560761338,7.1303,140.25,140.22,15.13464502]
[1728560761734,6.0513,140.29,140.22,15.13464502]
[1728560761939,6.0513,140.29,140.23,1.42599281]
[1728560761940,7.1307,140.24,140.23,1.42599281]
[1728560763037,7.1301,140.25,140.23,1.42599281]
[1728560763660,7.1297,140.26,140.23,1.42599281]
[1728560766667,7.1297,140.26,140.23,15.13463095]
[1728560766857,25.25526831,140.32,140.25,13.70863814]
[1728560767052,7.1282,140.29,140.27,13.70863814]
[1728560767357,7.1276,140.3,140.28,1.42542876]
[1728560767559,3.74456724,140.34,140.28,15.13405062]
[1728560767741,17.8135,140.35,140.27,29.15763814]
[1728560767742,7.1275,140.3,140.27,29.15763814]
[1728560767937,7.1275,140.3,140.28,1.42537235]
[1728560768167,7.1272,140.31,140.28,1.42537235]
[1728560769151,7.1276,140.3,140.27,15.449]
[1728560773478,7.1281,140.29,140.27,15.449]
[1728560774560,20.25098,140.35,140.25,23.776884]
[1728560774768,7.1291,140.27,140.25,23.776884]
[1728560774970,7.1291,140.27,140.23,36.07022814]
[1728560774971,0.25098,140.35,140.23,28.81373814]
[1728560775171,7.1292,140.27,140.23,35.94483814]
[1728560776680,7.1297,140.26,140.23,15.1051]
[1728560777758,17.818,140.31,140.23,15.1051]
[1728560777759,7.1291,140.27,140.24,23.776884]
[1728560777950,7.1287,140.28,140.24,30.907484]
[1728560778808,7.1291,140.27,140.24,23.776884]
[1728560780876,7.1286,140.28,140.24,44.61582214]
[1728560781065,7.1281,140.29,140.26,23.776884]
[1728560781269,17.818,140.31,140.26,23.776884]
[1728560781270,20.0,140.3,140.26,23.776884]
[1728560781485,20.0,140.3,140.25,23.776884]
[1728560781657,17.818,140.31,140.25,30.906884]
[1728560781658,7.1282,140.29,140.25,30.906884]
[1728560781858,7.1282,140.29,140.26,1.42553887]
[1728560782473,7.1282,140.29,140.25,44.61552214]
[1728560782690,7.1282,140.29,140.25,30.906884]
[1728560783674,7.1282,140.29,140.23,32.9322]
[1728560783675,20.0,140.28,140.23,15.1051]
[1728560784004,20.0,140.28,140.2,24.4846]
[1728560784005,7.1316,140.22,140.2,15.1888]
[1728560784287,7.1311,140.23,140.2,15.1888]
[1728560786590,7.1316,140.22,140.2,15.1888]
[1728560788477,7.1316,140.22,140.18,23.776884]
[1728560790472,20.0,140.26,140.18,23.776884]
[1728560790675,7.1321,140.21,140.18,23.776884]
[1728560791893,7.1318,140.22,140.18,37.48552214]
[1728560792104,7.1307,140.24,140.2,7.1326]
[1728560792284,20.0,140.26,140.19,7.1331]
[1728560792285,7.1311,140.23,140.19,7.1331]
[1728560794797,7.1316,140.22,140.18,44.61912214]
[1728560795602,7.1322,140.21,140.18,23.776884]
[1728560803574,7.1322,140.21,140.18,37.48552214]
[1728560804909,7.1326,140.2,140.17,33.839]
[1728560805079,7.1326,140.2,140.17,47.54763814]
[1728560806182,7.1326,140.2,140.18,1.42650546]
[1728560806509,7.1326,140.2,140.17,47.54763814]
[1728560807102,7.1334,140.19,140.15,20.84363814]
[1728560807305,7.1334,140.19,140.15,7.135]
[1728560807494,7.1334,140.19,140.16,1.42662648]
[1728560808103,6.0192,140.24,140.16,1.42662648]
[1728560808311,7.1327,140.2,140.16,22.26976462]
[1728560808833,7.1327,140.2,140.17,23.776884]
[1728560809178,7.1327,140.2,140.17,23.75581393]
[1728560809380,17.828,140.23,140.17,23.75581393]
[1728560809593,20.0,140.22,140.17,23.75581393]
[1728560809802,7.1328,140.2,140.17,23.75581393]
[1728560810401,17.828,140.23,140.17,23.75581393]
[1728560810684,7.1322,140.21,140.17,44.59855207]
[1728560813218,7.1327,140.2,140.17,37.46445207]
[1728560813911,7.1334,140.19,140.16,17.8365]
[1728560814209,7.1334,140.19,140.15,30.911984]
[1728560814406,20.12549,140.22,140.13,40.0759]
[1728560814610,0.12549,140.22,140.13,40.0759]
[1728560814792,7.1337,140.18,140.15,13.70863814]
[1728560815593,7.1337,140.18,140.14,20.84393814]
[1728560815805,7.1345,140.17,140.13,54.57133814]
[1728560816337,7.1345,140.17,140.13,40.8627]
[1728560816514,7.1348,140.16,140.13,17.8395]
[1728560816900,20.12549,140.19,140.12,3.93727425]
[1728560817099,7.1352,140.15,140.11,7.1371]
[1728560817402,7.1357,140.14,140.1,24.9812]
[1728560819311,7.1353,140.15,140.1,24.9812]
[1728560819809,0.12549,140.18,140.1,24.9812]
[1728560820016,7.1357,140.14,140.1,38.68983814]
[1728560820402,0.12549,140.18,140.11,7.1372]
[1728560820403,7.1353,140.15,140.11,7.1372]
[1728560820608,7.1357,140.14,140.11,1.42719418]
[1728560820994,7.1357,140.14,140.1,38.68953814]
[1728560821705,7.1353,140.15,140.11,7.1372]
[1728560822932,37.95869,140.19,140.12,19.2686132]
[1728560823218,7.1342,140.17,140.13,7.1359]
[1728560823419,7.1342,140.17,140.14,1.42695329]
[1728560823802,7.1342,140.17,140.13,7.1359]
[1728560824006,7.1342,140.17,140.13,8.562853]
[1728560824414,7.1347,140.16,140.13,1.426953]
[1728560826196,20.0,140.19,140.13,1.426953]
[1728560826402,7.1343,140.17,140.13,8.563053]
[1728560827009,7.1338,140.18,140.14,7.1356]
[1728560827334,7.1338,140.18,140.15,1.4268375]
[1728560828029,7.1338,140.18,140.14,7.1356]
[1728560829502,7.1338,140.18,140.15,1.42679155]
[1728560829702,7.1338,140.18,140.14,7.1356]
[1728560830318,7.1338,140.18,140.15,1.42678949]
[1728560830639,0.25098,140.22,140.15,1.42678949]
[1728560830807,7.1328,140.2,140.16,7.1346]
[1728560831132,7.1328,140.2,140.17,1.42665055]
[1728560831304,7.1323,140.21,140.17,8.56075055]
[1728560831704,23.9073,140.23,140.17,8.56075055]
[1728560831705,7.1327,140.2,140.17,1.42665055]
[1728560832328,7.1323,140.21,140.17,8.56075055]
[1728560834011,27.1319,140.22,140.18,7.1336]
[1728560834240,7.1326,140.21,140.17,7.134]
[1728560834423,7.1326,140.21,140.18,1.42650504]
[1728560836035,7.1326,140.21,140.17,7.134]
[1728560836239,7.1326,140.2,140.17,7.134]
[1728560836549,7.1332,140.19,140.16,17.8364]
[1728560837331,7.1332,140.19,140.16,24.971]
[1728560838227,20.0,140.22,140.14,15.4822]
[1728560838425,7.1347,140.16,140.14,15.4822]
[1728560840414,20.0,140.19,140.14,15.4822]
[1728560840636,7.1338,140.18,140.15,1.42681229]
[1728560842134,7.1338,140.18,140.14,22.6174]
[1728560842908,7.1338,140.18,140.15,1.42679601]
[1728560843114,7.1333,140.19,140.15,8.56199601]
[1728560843724,0.25098,140.22,140.15,19.26419601]
[1728560844433,0.25098,140.22,140.15,17.8374]
[1728560844610,7.1335,140.19,140.15,24.9724]
[1728560847140,7.1335,140.19,140.16,1.42661847]
[1728560849721,7.1335,140.19,140.15,24.9724]
[1728560851421,20.12549,140.22,140.15,17.8374]
[1728560851622,7.1337,140.18,140.15,17.8374]
[1728560852038,7.1337,140.18,140.15,24.9726]
[1728560853628,7.1332,140.19,140.15,24.9726]
[1728560855131,7.1332,140.19,140.16,1.42663365]
[1728560855639,7.1332,140.19,140.15,24.9726]
[1728560859318,7.1332,140.19,140.15,17.8374]
[1728560859648,7.1328,140.2,140.16,30.911484]
[1728560860734,6.0784,140.23,140.16,37.48552214]
[1728560860940,7.1323,140.21,140.17,7.1341]
[1728560861946,7.1327,140.2,140.17,7.1341]
[1728560862142,7.1327,140.2,140.16,30.911384]
[1728560862647,7.1327,140.2,140.16,7.1345]
[1728560863227,7.1331,140.19,140.16,7.1345]
[1728560867140,23.9064,140.23,140.16,7.1345]
[1728560867338,7.1328,140.2,140.16,7.1345]
[1728560869331,20.0,140.22,140.16,7.1345]
[1728560869532,20.0,140.22,140.15,24.9724]
[1728560869844,7.1337,140.18,140.15,17.8374]
[1728560870244,7.1337,140.18,140.15,24.9725]
[1728560870653,20.0,140.22,140.15,24.9725]
[1728560870954,7.1333,140.19,140.15,24.9725]
[1728560872532,7.1316,140.22,140.18,7.1334]
[1728560872847,7.1316,140.22,140.19,1.42641222]
[1728560874651,7.1316,140.22,140.18,7.1334]
[1728560875249,24.0783,140.26,140.18,7.1334]
[1728560875432,7.1322,140.21,140.18,7.1334]
[1728560875632,7.1326,140.2,140.16,7.1345]
[1728560877537,7.1326,140.2,140.17,1.42656164]
[1728560877859,7.1326,140.2,140.16,7.1345]
[1728560880662,7.1326,140.2,140.16,20.84313814]
[1728560883574,7.1326,140.2,140.16,7.1345]
[1728560884657,17.8268,140.24,140.16,7.1345]
[1728560884846,7.1331,140.19,140.16,7.1345]
[1728560885042,7.1331,140.19,140.15,30.911984]
[1728560885248,7.1331,140.19,140.14,33.3206]
[1728560885249,7.1342,140.17,140.14,33.3206]
[1728560885560,7.134,140.18,140.14,40.4562]
[1728560886162,20.12549,140.21,140.14,33.3206]
[1728560886366,7.1342,140.17,140.14,33.3206]
[1728560886667,7.1338,140.18,140.14,40.4562]
[1728560888848,7.1322,140.21,140.17,7.1338]
[1728560889167,7.1322,140.21,140.18,1.42655229]
[1728560890265,7.1322,140.21,140.17,7.1338]
[1728560890440,20.25098,140.24,140.16,41.613184]
[1728560890641,7.133,140.2,140.16,48.747784]
[1728560891156,20.25098,140.24,140.14,15.4822]
[1728560891344,7.1333,140.19,140.15,7.1348]
[1728560891869,7.1333,140.19,140.15,8.56151883]
[1728560892233,7.1333,140.19,140.16,1.42670832]
[1728560892437,7.1333,140.19,140.15,24.9727]
[1728560893168,7.1333,140.19,140.15,17.8379]
[1728560893356,17.8285,140.23,140.16,7.1347]
[1728560893665,7.1328,140.2,140.16,7.1347]
[1728560894846,17.8285,140.23,140.16,23.776884]
[1728560895048,7.1327,140.2,140.16,23.776884]
[1728560895260,7.1327,140.2,140.16,30.911484]
[1728560897754,7.1327,140.2,140.16,44.62012214]
[1728560899385,7.1332,140.19,140.15,24.9727]
[1728560900364,20.12549,140.22,140.15,17.8379]
[1728560900570,7.1337,140.18,140.15,17.8379]
[1728560901270,7.1342,140.17,140.14,15.4822]
[1728560901891,7.1342,140.17,140.14,16.90913533]
[1728560902183,24.1498,140.21,140.12,31.54963814]
[1728560902184,17.8332,140.19,140.12,24.9775]
[1728560902395,17.8332,140.19,140.11,3.95395367]
[1728560902396,0.12549,140.17,140.11,3.95395367]
[1728560902689,0.12549,140.17,140.1,15.5939]
[1728560902888,7.1363,140.13,140.1,15.5939]
[1728560904278,17.837,140.16,140.1,15.5939]
[1728560904490,7.1359,140.14,140.1,15.5939]
[1728560904783,0.12549,140.14,140.08,17.8466]
[1728560905193,7.1373,140.11,140.08,17.8466]
[1728560906069,7.1373,140.11,140.07,7.1389]
[1728560907090,7.1373,140.11,140.07,8.56648364]
[1728560907392,7.1373,140.11,140.07,7.1389]
[1728560908678,7.1373,140.11,140.07,8.56648329]
[1728560908896,7.1373,140.11,140.07,7.1389]
[1728560909567,20.0,140.13,140.06,15.5025]
[1728560910494,7.1379,140.1,140.06,22.6422]
[1728560911996,20.0,140.13,140.06,15.5025]
[1728560912201,7.1367,140.12,140.08,7.1386]
[1728560912672,27.1363,140.13,140.09,7.138]
[1728560912871,7.1363,140.13,140.09,1.42736547]
[1728560913076,7.1359,140.14,140.09,8.56556547]
[1728560913288,7.1359,140.14,140.09,7.1382]
[1728560913501,7.1359,140.14,140.1,1.4273687]
[1728560913674,7.1359,140.14,140.09,7.1382]
[1728560913996,7.1362,140.13,140.09,8.56556662]
[1728560914304,7.1357,140.14,140.1,7.1373]
[1728560915201,27.1353,140.15,140.11,7.1371]
[1728560915368,6.3378,140.16,140.1,7.1375]
[1728560915694,7.1359,140.14,140.1,7.1375]
[1728560918781,20.0,140.15,140.09,17.8453]
[1728560920286,20.0,140.15,140.06,15.5025]
[1728560920599,7.1376,140.11,140.07,30.916084]
[1728560921806,7.1376,140.11,140.07,7.1392]
[1728560922785,7.1378,140.1,140.06,22.6421]
[1728560926102,7.1386,140.09,140.06,15.5025]
[1728560926293,6.4756,140.11,140.04,7.1406]
[1728560926502,7.1392,140.07,140.03,23.0245]
[1728560926692,7.1393,140.07,140.03,23.0245]
[1728560926900,7.1389,140.08,140.04,7.1407]
[1728560930087,20.0,140.1,140.05,1.4278694]
[1728560930403,7.1382,140.09,140.05,7.14]
[1728560933184,7.1382,140.09,140.06,1.42779205]
[1728560933516,7.1382,140.09,140.05,7.14]
[1728560933694,7.1382,140.09,140.05,8.56779125]
[1728560934610,7.1382,140.09,140.05,7.14]
[1728560934908,6.4756,140.11,140.04,55.33672214]
[1728560935082,7.1378,140.1,140.06,7.1396]
[1728560935289,7.1386,140.09,140.04,62.47712214]
[1728560935488,7.1393,140.07,140.04,48.768884]
[1728560935695,7.1389,140.08,140.04,48.768884]
[1728560936101,7.1389,140.08,140.04,24.992]
[1728560937391,7.1384,140.09,140.06,7.1397]
[1728560938307,20.0,140.14,140.06,24.989]
[1728560938493,7.1379,140.1,140.06,24.989]
[1728560939089,20.0,140.14,140.06,17.8493]
[1728560939290,7.1384,140.09,140.06,17.8493]
[1728560940597,20.0,140.12,140.06,17.8493]
[1728560940799,7.1374,140.11,140.07,8.56651653]
[1728560940995,7.1379,140.1,140.06,24.9889]
[1728560941711,7.1379,140.1,140.06,26.41653543]
[1728560942409,20.0,140.12,140.06,19.27693543]
[1728560942596,7.1373,140.11,140.07,7.1392]
[1728560942997,7.1373,140.11,140.08,8.56632902]
[1728560943207,7.1368,140.12,140.08,8.56632902]
[1728560943406,7.1373,140.11,140.08,1.42762902]
[1728560943607,7.1373,140.11,140.07,36.71773814]
[1728560943991,7.1373,140.11,140.07,38.14528539]
[1728560944331,7.1373,140.11,140.07,24.43665377]
[1728560944690,17.8395,140.14,140.07,24.43665377]
[1728560944691,7.1369,140.12,140.08,7.1387]
[1728560944893,7.1369,140.12,140.09,1.42749199]
[1728560945390,17.8395,140.14,140.08,7.1387]
[1728560945591,7.1372,140.11,140.07,23.0091]
[1728560947321,7.1364,140.13,140.09,7.1382]
[1728560949209,7.1364,140.13,140.1,1.42740768]
[1728560949809,7.1364,140.13,140.09,8.56558662]
[1728560950909,7.1358,140.14,140.1,7.1376]
[1728560951996,7.1353,140.15,140.11,8.56436898]
[1728560952423,7.1353,140.15,140.11,7.1371]
[1728560953192,7.1353,140.15,140.11,8.56425844]
[1728560954756,17.8327,140.2,140.14,13.70863814]
[1728560955017,6.2635,140.22,140.15,13.70863814]
[1728560955192,7.133,140.2,140.16,8.56098585]
[1728560955608,7.1331,140.19,140.15,7.135]
[1728560955795,7.1328,140.2,140.16,8.56132338]
[1728560956400,7.1328,140.2,140.16,7.1346]
[1728560957615,7.1325,140.21,140.17,7.1341]